[Event "EU-ch 12th"]
[Site "Aix les Bains"]
[Date "2011.03.22"]
[Round "1"]
[White "Laznicka, Viktor"]
[Black "Telljohann, Sven"]
[Result "1/2-1/2"]
[ECO "A40"]
[WhiteElo "2688"]
[BlackElo "2415"]
[Annotator "Marchand,A/Primel,D"]
[PlyCount "73"]
[EventDate "2011.03.22"]
[EventType "swiss"]
[EventRounds "11"]
[EventCountry "FRA"]
[SourceTitle "CBM 142 Extra"]
[Source "ChessBase"]
[SourceDate "2011.06.27"]
[SourceVersion "1"]
[SourceVersionDate "2011.06.27"]
[SourceQuality "1"]
[TimeControl "40/5400+30:1800+30"]

1. d4 g6 2. c4 Bg7 3. Nf3 c5 4. d5 ({RR} 4. e4 cxd4 5. Nxd4 Nc6 6. Be3) 4... d6
5. e4 (5. Qc2 $5 e5 6. Nc3 f5 7. e4 h6 {[%csl Gg5]} 8. g3 $1 {[%cal Gf1h3,
Gf3h4]} Ne7 {[%cal Ge7g6,Ge7f5]} 9. Nh4 O-O 10. Bd3 $14 (10. exf5 gxf5 11. Bd3
e4 12. Be2 Nd7 {[%csl Gd3][%cal Gd7e5]}) 10... f4 11. gxf4 exf4 12. e5 $1 {
[%csl Rg6]} g5 13. exd6 (13. e6 $1 {[%csl Rb8,Gd7]} gxh4 14. Rg1 Kh8 15. Bd2 a6
16. O-O-O $44) 13... Qxd6 14. Ne4 Qb6 15. d6 Nec6 16. Ng6 Rf7 17. h4 Bf5 18.
Ne7+ Nxe7 19. dxe7 Rxe7 {Lasinskas,P (2234)-Telljohann,S (2408)/ Germany 2003/
EXT 2005/0-1 (34)}) (5. Nc3 Bxc3+ $1 6. bxc3 f5 (6... Qa5 7. Qb3 f5 8. e3 (8.
g3) 8... Nf6 9. Bd3 Nbd7 10. O-O Nb6 11. Nd2 Bd7 (11... Qa6 12. Bc2 (12. f3 $2
Nfxd5 {[%csl Rd3]})) 12. f3 Ba4 (12... O-O-O 13. e4) 13. Qb2 O-O-O (13... Qa6
14. e4) 14. e4 fxe4 15. fxe4 Rdf8 16. e5 $1 Ng4 (16... dxe5 17. Nb3 Qa6 18.
Nxc5) 17. exd6 exd6 18. Nb3 Qa6 19. Bf4 $2 Nxd5) 7. g3 (7. h4 Nf6 8. Bh6 (8. h5
Rg8 9. hxg6 hxg6) 8... Qa5 9. Qc2 Nbd7 10. e3 Nb6 11. Bd3 Bd7 12. O-O O-O-O 13.
Rfe1 Qa4 14. Nd2 Qxc2 $15 {Doric,D (2420)-Sulava,N (2489) CRO-chT 15th 2006 (7)
0-1}) (7. Qa4+ $5 Bd7 8. Qb3 Qa5 9. Nd2 Nf6 (9... Na6 10. e4 $14)) (7. Qc2 Nf6
(7... Qa5) 8. Bh6 Qa5 9. e3 Nbd7 10. h3 Nb6 11. Bd3 Bd7 12. O-O Qa4 13. Qb3 Ne4
14. Bxe4 fxe4 15. Nd2 O-O-O 16. f3 $1 $14 {Alburt,L (2535)-Vigorito,D New York
op 1993 (4) 1-0}) 7... Qa5 8. Qc2 (8. Qb3 Nf6 9. Bg2 Nbd7 10. O-O Nb6 11. Nd2
Bd7 12. Re1 Ba4 13. Qb2 O-O 14. e4 $6 fxe4 15. Bf1 (15. Nxe4 Nxc4) 15... Qa6
16. Nxe4 Nxc4 17. Nxf6+ exf6 18. Re6 Nxb2 19. Bxa6 bxa6 20. Bxb2 Bb5 (20...
Rad8 21. c4 {[%csl Gb2]}) 21. Rxd6 Rad8) 8... Nf6 9. Bg2 Nbd7 $1 {[%csl Rc4]
[%cal Gd7b6]} 10. O-O Nb6 {[%csl Rc4][%cal Ga5a6]} 11. Nd2 Qa4 (11... Bd7 12.
Re1 O-O-O $132 13. Rb1 Rhe8 (13... Qa4 14. Qb3 Rhe8 15. e4) 14. Nb3 Qa4)) 5...
Bg4 (5... e6 6. Nc3 exd5 7. cxd5 a6 8. a4 Bg4 (8... Nf6 {Retombe sur une
grande ligne de la Benoni} 9. Bf4 O-O 10. Be2) 9. Be2 Nf6 (9... Nd7 10. O-O
Ngf6 11. Bf4 Qe7 (11... Bxf3 12. Bxf3 Qe7 13. a5 O-O 14. Re1 Rab8 15. Qc2 Ne8
16. Be2 Nc7 {[%cal Gc7a6]} 17. h3 b5 18. axb6 Rxb6 19. Bf1 Rfb8 $132)) 10. Bf4)
6. Be2 a6 ({RR} 6... Nd7 7. O-O Bxf3 8. Bxf3 Ngf6 9. Nc3 O-O 10. Bg5 h6 11. Be3
a6 12. Be2 Rb8 13. a4 Kh7 14. f4 Ne8 15. Rf3 e6 16. dxe6 fxe6 17. Qd2 Ndf6 18.
Rh3 Ng8 19. Rf1 Qb6 20. Bg4 d5 21. cxd5 {Trifunovic,P-Wade,R/Palma de Mallorca
1966/EXT 1998/1-0 (31)}) 7. Nc3 Nd7 8. O-O Ngf6 9. Ng5 $146 {[%cal Gf2f4]} (9.
Bg5 O-O {Belov,V (2620)-Williams,S (2452) Hastings Masters op 2005 (6) 1-0}) (
9. a4 O-O {Toth,A (2419)-Kulaots,K (2530) Paks Cup GM 7th 2003 (8) 1/2}) 9...
Bxe2 10. Qxe2 h6 11. Nh3 O-O 12. f4 Ne8 13. a4 Nc7 14. a5 (14. e5 $5 dxe5 15.
f5 {[%cal Gc3e4]}) 14... Rb8 15. Ra3 b5 16. axb6 Rxb6 17. Nd1 e6 18. Rg3 (18.
f5 Ne5 19. Rg3 $14 {[%csl Rg6]}) 18... exd5 19. exd5 Qe8 20. Qc2 f5 {[%csl Re6]
} 21. Nhf2 (21. Kh1 $5 {[%cal Gg3e3,Ge3e8]} Qf7 22. Re3 Bd4) 21... Qf7 22. Rf3
{[%csl Rf3]} Nf6 23. Ne3 h5 24. g3 Re8 25. h3 Ne4 26. g4 h4 27. gxf5 gxf5 28.
Nxe4 Rxe4 29. Kh1 Qh5 30. Qg2 Ne8 31. Qg5 Qxg5 {Les derniers coups ont été
joués avec moins d'une minute pour les deux adversaires} (31... Rb3 {La
variante sauvegardée а tort par le plateau DGT qui "oublie" le coup 31 Qg5
jouée dans la partie.} 32. Bd2 Rxb2 33. Be1 Rb3 34. Ng2 Rxf3 35. Rxf3 Rxc4 36.
Bxh4 a5) 32. fxg5 Rb3 33. Bd2 Rxb2 34. Be1 Rb3 35. Ng2 Rxf3 36. Rxf3 Rxc4 37.
Bxh4 1/2-1/2

[Event "Metz op 31th"]
[Site "Metz"]
[Date "2013.07.25"]
[Round "8"]
[White "Nisipeanu, Liviu Dieter"]
[Black "Bauer, Christian"]
[Result "1/2-1/2"]
[ECO "A40"]
[WhiteElo "2677"]
[BlackElo "2637"]
[Annotator "Metz Alekhine/Primel,D"]
[PlyCount "39"]
[EventDate "2013.04.20"]
[EventType "swiss"]
[EventRounds "9"]
[EventCountry "FRA"]
[SourceTitle "EXT 2016"]
[Source "ChessBase"]
[SourceDate "2015.10.08"]
[SourceVersion "1"]
[SourceVersionDate "2015.10.08"]
[SourceQuality "1"]
[TimeControl "40/5400:1800+30"]
[WhiteClock "1:30:00"]
[BlackClock "1:30:00"]

1. d4 e6 2. c4 b6 3. e4 Bb7 {Ce système n'a pas très bonne réputation
théorique mais le français a écrit une monographie sur la défense 1.c4 b6}
4. Bd3 (4. d5) 4... Nc6 (4... f5 {[%cal Gb7g2] Plus risqué}) 5. Ne2 Nb4 6.
Nbc3 Nxd3+ 7. Qxd3 Bb4 (7... Ne7 8. O-O d6) (7... g6 8. h4 Nf6 9. e5 Nh5 10. d5
d6 11. g4 Ng7 12. Bf4 Qd7 13. O-O-O O-O-O 14. Bg5 Be7 15. Bf6 Rhg8 16. Nb5 dxe5
17. Bxe5 Ne8 18. Qb3 exd5 19. cxd5 Kb8 20. Nec3 Bd6 21. Nxd6 Nxd6 22. f3 h5 23.
Qb4 Rge8 24. Bf6 Rc8 25. Rhe1 Ba6 26. Qf4 Rxe1 27. Rxe1 Re8 28. Rxe8+ Nxe8 29.
Bd4 Nd6 30. a4 Bc8 31. gxh5 gxh5 32. Be5 Nf5 33. a5 Qe7 34. axb6 axb6 35. Ne4
Kb7 36. d6 Qxh4 37. Qxh4 {Smirnov,P (2610)-Bocharov,D (2620) Novosibirsk 2012
1/2-1/2}) 8. O-O Bxc3 9. Nxc3 Ne7 10. d5 {[%csl Rb7] La poussée thématique
pour enfermer le Bb7} O-O 11. Bg5 $146 (11. Be3 f5 12. f3 fxe4 13. fxe4 Rxf1+
14. Rxf1 Ng6 15. b3 Qe7 16. Bd2 c6 17. Qd4 e5 18. Qd3 Rf8 19. Rxf8+ Nxf8 20.
Be3 c5 21. Qf1 d6 22. Qf5 a6 23. Qg5 Qc7 24. h4 Bc8 25. h5 h6 26. Qg3 Kf7 27.
a4 Qd7 28. Qh4 Ke8 29. Ne2 Qg4 30. Qxg4 Bxg4 31. Ng3 Nd7 32. a5 bxa5 33. Bd2 a4
34. bxa4 Nb6 35. Kf2 Nxc4 36. Bc3 Kf7 37. Nf1 Bxh5 38. Ne3 Nxe3 39. Kxe3 Bd1
40. a5 Kg6 {Feller,S (2570)-Chernyshov,K (2534) Harkany 2009 0-1}) 11... f6 12.
Bf4 d6 $1 13. dxe6 Bc8 14. Bg3 Bxe6 $132 15. Rfe1 Nc6 16. b3 f5 17. exf5 Nb4
18. Qd2 Bxf5 19. Nd5 Nxd5 20. Qxd5+ 1/2-1/2

[Event "Rohde op 12th"]
[Site "Sautron"]
[Date "2012.10.28"]
[Round "2"]
[White "Nguyen, Chi Minh"]
[Black "Ulybin, Mikhail"]
[Result "1-0"]
[ECO "A40"]
[WhiteElo "2392"]
[BlackElo "2529"]
[Annotator "RR"]
[PlyCount "75"]
[EventDate "2012.10.27"]
[EventType "swiss"]
[EventRounds "9"]
[EventCountry "FRA"]
[SourceTitle "EXT 2014"]
[Source "ChessBase"]
[SourceDate "2013.11.20"]
[SourceVersion "1"]
[SourceVersionDate "2013.11.20"]
[SourceQuality "1"]
[TimeControl "40/5400+30:1800+30"]
[WhiteClock "1:30:00"]
[BlackClock "1:30:00"]

1. d4 {[%emt 0:00:00]} e6 {[%emt 0:03:21]} 2. c4 {[%emt 0:00:45]} f5 {[%emt 0:
00:43]} 3. Nc3 {[%emt 0:00:46]} (3. g3 {La grande ligne}) 3... Nf6 {[%emt 0:00:
44]} 4. Qc2 {[%emt 0:01:01]} (4. Nf3 d5 5. Bf4 c6 6. e3) 4... b6 {[%emt 0:01:
20] Une ancienne ligne passée un peu de mode} (4... Bb4) 5. e3 {[%emt 0:01:13]}
Bb7 {[%emt 0:00:58]} 6. a3 {[%emt 0:00:58]} ({RR} 6. f3 g6 7. Bd3 Bg7 8. Nge2
O-O 9. b4 d5 10. O-O Kh8 11. Rb1 a6 12. a4 Nbd7 13. cxd5 exd5 14. b5 Re8 15.
Bd2 Nf8 16. Kh1 Nh5 17. f4 Nf6 18. Ng1 Ne4 19. Nf3 Ne6 20. Na2 a5 {Rustemov,A 
(2589)-Ulibin,M (2586)/Biel 2004/EXT 2005/1-0 (58)}) 6... g6 $146 {[%emt 0:06:
10] Comme son adversaire jouait vite et s'était préparé sur une de ses
anciennes parties, le Russe décide de dévier le premieraprès quelques minutes
de réflexion.} ({RR} 6... Bd6 7. Nge2 O-O 8. Nf4 a6 9. Be2 g5 10. Nd3 Bxg2 11.
Rg1 Bb7 12. Rxg5+ Kh8 13. Bd2 h6 14. Rg1 Bxh2 15. Rf1 Bg2 16. O-O-O Bxf1 17.
Rxf1 Rg8 18. Qd1 Ne4 19. Rh1 Qh4 20. Nxe4 fxe4 21. Ne5 {Wojtaszek,R (2599)
-Ulibin,M (2521)/Stockholm 2009/CBM 128 Extra/1-0 (39)}) 7. Nf3 {[%emt 0:02:36]
} Bg7 {[%emt 0:04:40] Le mélange des deux systèmes est un peu bizarre et dans
une système de Léningrad, le plan des Noirs vise plutôt а jouer sur cases
noires au centre par d6e5.} 8. Be2 {[%emt 0:04:16]} O-O {[%emt 0:06:32]} 9. b4
$1 {[%emt 0:00:47]} a5 {[%emt 0:07:09]} 10. b5 {[%emt 0:04:07]} d6 {[%emt 0:02:
02][%csl Rc7]} 11. O-O {[%emt 0:04:00]} Nbd7 {[%emt 0:02:07]} 12. Bb2 {[%emt 0:
01:26]} Qe7 {[%emt 0:06:14][%cal Ge6e5]} 13. Nd2 {[%emt 0:09:34][%cal Ge3e4,
Ge2f3]} e5 $11 {[%emt 0:07:32]} 14. Rae1 {[%emt 0:01:06][%cal Ge1e7]} Kh8 $6 {
[%emt 0:05:40] Pas forcément indispensable} 15. Na4 {[%emt 0:03:17][%cal Gc4c5]
} c5 {[%emt 0:18:52]} 16. d5 {[%emt 0:16:25][%csl Rb6,Rb7,Rd6]} (16. bxc6 Bxc6
17. Rb1 {[%csl Rb6]}) 16... e4 {[%emt 0:01:38][%cal Gd7e5]} 17. f3 $1 {[%emt 0:
01:58]} exf3 {[%emt 0:02:33]} 18. Bxf3 {[%emt 0:00:59][%cal Ge3e4]} Rae8 {
[%emt 0:09:26]} 19. e4 {[%emt 0:03:44][%cal Ge1e7]} Bc8 {[%emt 0:07:53] Le
russe a désormais moins de 05 minutes pour passer le contrôle de temps.} 20.
Qb1 $1 {[%emt 0:05:34][%cal Gb1e1,Ge4f5,Ge1e7,Gb1a1]} f4 $8 {[%emt 0:01:31]}
21. Qa1 $36 {[%emt 0:02:18] Les Blancs ont un bon avantage d'espace et en
zeitnot, la position Noire n'est pas facile а jouer.} g5 {[%emt 0:01:19]} 22.
Bd1 {[%emt 0:01:39]} h6 {[%emt 0:01:52]} 23. Nf3 {[%emt 0:02:07][%cal Ge4e5]}
Nh7 $6 {[%emt 0:00:41]} (23... Ng4 $142 {[%cal Gg4e5]} 24. Bxg7+ Qxg7 25. Qxg7+
Kxg7 26. Nxg5 {Le GMI a manqué de temps pour calculer au delà ce de coup
intermédiaire} Nde5 27. Ne6+ Bxe6 28. dxe6 Ne3 29. Nxb6 Nxf1 30. Rxf1 Rxe6) 24.
e5 $1 {[%emt 0:01:56][%csl Re7]} Nxe5 {[%emt 0:00:24]} (24... dxe5 25. Nxb6 $1
Nxb6 26. Nxe5 {[%csl Re7,Rh8][%cal Ge5g6]}) 25. Nxb6 {[%emt 0:00:32]} Bf5 {
[%emt 0:00:26]} 26. Nxe5 {[%emt 0:00:19]} Bxe5 {[%emt 0:00:38]} 27. Bh5 $16 {
[%emt 0:00:15][%csl Gb5,Rd6][%cal Gb5b8]} Qg7 {[%emt 0:00:30]} 28. Na4 {
[%emt 0:04:19]} Bxb2 {[%emt 0:00:28]} 29. Qxb2 {[%emt 0:00:20]} Rxe1 {[%emt 0:
00:32]} 30. Qxg7+ {[%emt 0:00:48]} Kxg7 {[%emt 0:00:03]} 31. Rxe1 {[%emt 0:00:
04][%csl Ra5,Gb5,Rd6][%cal Ge1e7,Gg1f2]} Kf6 $4 $138 {[%emt 0:00:53]} (31...
Nf6 32. Re7+ Kg8 33. Be2 {[%csl Gb5,Rc4][%cal Ge2c4,Gb5b6,Gb6b7]} Rf7 34. Rxf7
Kxf7 35. Kf2 Ke7 $132) 32. h3 {[%emt 0:00:55]} Rb8 {[%emt 0:00:28]} 33. Nc3 {
[%emt 0:04:03]} Nf8 {[%emt 0:00:30]} 34. Ne4+ {[%emt 0:00:20]} Ke5 $4 {[%emt 0:
00:36]} (34... Bxe4) 35. Ng3+ {[%emt 0:00:55]} Kf6 {[%emt 0:00:12]} 36. Nxf5 {
[%emt 0:00:36]} Kxf5 {[%emt 0:00:03]} 37. Re8 {[%emt 0:00:12]} Rxe8 {[%emt 0:
00:58]} 38. Bxe8 {[%emt 0:00:06]} 1-0

[Event "Sautron op 14th"]
[Site "Sautron"]
[Date "2014.10.25"]
[Round "6"]
[White "Maiorov, Nikita"]
[Black "Shirazi, Kamran"]
[Result "1-0"]
[ECO "A40"]
[WhiteElo "2583"]
[BlackElo "2367"]
[Annotator "RR"]
[PlyCount "69"]
[EventDate "2014.10.26"]
[EventType "swiss"]
[EventRounds "9"]
[EventCountry "FRA"]
[SourceTitle "EXT 2015"]
[Source "ChessBase"]
[SourceDate "2014.11.20"]
[SourceVersion "1"]
[SourceVersionDate "2014.11.20"]
[SourceQuality "1"]
[TimeControl "40/5400+30:1800+30"]
[WhiteClock "0:13:11"]
[BlackClock "0:22:08"]

1. d4 {[%emt 0:00:00]} e6 {[%emt 0:00:00]} 2. c4 {[%emt 0:00:06]} b6 {[%emt 0:
00:00] Une variante qui n'a pas très bonne réputation théorique} (2... Bb4+)
3. Nc3 {[%emt 0:00:40]} Bb7 {[%emt 0:00:05]} 4. e3 {[%emt 0:02:07]} f5 {
[%emt 0:01:04] Très risqué mais le MI veut pêcher en eaux troubles} (4...
Nf6 5. Nf3 Be7 6. Bd3 c5 7. O-O cxd4 8. Nxd4 O-O 9. b3 Na6 10. Bb2 Nc5 11. Bc2
Qb8 12. Nde2 a5 13. Qd4 h6 14. Ng3 Rd8 15. Rad1 d6 16. e4 h5 17. Rfe1 h4 18.
Nf1 Nh5 19. Qe3 Bf6 20. Qf3 g6 21. g4 hxg3 22. Nxg3 Nxg3 23. Qxf6 Nh5 24. Qg5
e5 25. Nd5 Ne6 26. Nf6+ Nxf6 27. Qxf6 Nf4 28. Re3 Qc8 29. Rxd6 Rxd6 30. Qxd6
Qg4+ 31. Kf1 Qg2+ 32. Ke1 Qg1+ 33. Kd2 Qxf2+ 34. Kd1 {Schleining,Z (2377)-Graf,
F (2481) Saarbruecken 2013 0-1}) 5. f3 {[%emt 0:11:09]} Qh4+ $5 $146 {[%emt 0:
10:17]} (5... Nf6 6. Bd3 g6 7. Nge2 Bg7 8. O-O O-O 9. e4 fxe4 10. fxe4 c5 11.
Bg5 cxd4 12. Nxd4 Nc6 13. Nxc6 dxc6 14. Qe2 c5 15. Rad1 Qd4+ 16. Kh1 Qe5 17.
Bf4 Qh5 18. Bd6 Ng4 19. h3 Rxf1+ 20. Rxf1 Rd8 21. Bf4 Nf6 22. Qe3 e5 23. Bh2
Bh6 24. Qf3 Bg7 25. Nd5 Qxf3 26. Rxf3 Bxd5 27. cxd5 Ne8 28. Kg1 Nd6 29. Kf1 c4
30. Bb1 Rc8 31. a4 a6 32. Bg1 b5 33. axb5 axb5 34. Ra3 Bf8 35. Bh2 {Olivares,F
(2305)-Alvarez Pedraza,A (2486) Havana 2014 1/2-1/2}) 6. g3 {[%emt 0:00:17]}
Qh5 {[%emt 0:00:44]} 7. Bg2 {[%emt 0:00:34]} Bb4 {[%emt 0:00:22]} 8. Bd2 {
[%emt 0:00:29]} Nf6 {[%emt 0:00:16]} 9. Nh3 $1 {[%emt 0:01:12][%cal Gh3f4,
Gf4h5]} Bxc3 {[%emt 0:01:53]} 10. Bxc3 {[%emt 0:00:29]} d6 {[%emt 0:01:00]
[%cal Ge6e5]} 11. Nf4 $14 {[%emt 0:04:45]} Qf7 {[%emt 0:00:05]} 12. Qe2 $1 {
[%emt 0:06:01][%cal Ge3e4]} Nbd7 {[%emt 0:03:22]} 13. e4 {[%emt 0:01:42]} fxe4
{[%emt 0:01:01]} 14. fxe4 {[%emt 0:00:08][%cal Ge4e5]} e5 {[%emt 0:00:07]} 15.
Nd5 {[%emt 0:00:15]} exd4 {[%emt 0:08:17]} 16. Bxd4 {[%emt 0:02:13]} O-O-O {
[%emt 0:03:22]} 17. O-O $13 {[%emt 0:01:23][%csl Re4]} Ne5 $6 {[%emt 0:02:09]
Un coup naturel mais le GMI va trouver immédiatement la réfutation} (17...
Kb8) 18. c5 $1 {[%emt 0:07:08]} Rhe8 {[%emt 0:08:21]} (18... bxc5 19. Bxe5 $36)
19. cxb6 {[%emt 0:05:07]} cxb6 {[%emt 0:01:34]} 20. a4 {[%emt 0:04:18]} Nc6 {
[%emt 0:02:10][%csl Ga5] Trop lent} (20... Bxd5 {Un moindre mal mais jouer
sans le B ne peut que retarder l'échéance.} 21. exd5 Kb8 22. Qb5 (22. a5 Nc6)
22... Qd7) 21. Bxf6 {[%emt 0:02:50]} gxf6 {[%emt 0:00:43]} 22. Nxf6 {[%emt 0:
01:12]} Re5 {[%emt 0:06:43]} 23. Bh3+ {[%emt 0:09:56]} Kc7 {[%emt 0:05:15]} 24.
b4 $1 {[%emt 0:10:40]} Nxb4 {[%emt 0:03:58]} 25. Rac1+ $40 {[%emt 0:07:54]} Kb8
{[%emt 0:11:11]} 26. Nd7+ {[%emt 0:02:05]} Rxd7 {[%emt 0:00:02]} 27. Rxf7 {
[%emt 0:00:11]} Rxf7 {[%emt 0:00:03]} 28. Qd2 {[%emt 0:00:20]} Rc5 {[%emt 0:01:
58]} 29. Rxc5 {[%emt 0:01:21]} bxc5 {[%emt 0:00:09]} 30. Qxd6+ {[%emt 0:00:05]}
Rc7 {[%emt 0:00:07]} 31. e5 {[%emt 0:00:30]} Be4 {[%emt 0:05:03]} 32. Bd7 {
[%emt 0:04:15]} Nd3 {[%emt 0:01:53]} 33. e6 {[%emt 0:00:19]} c4 {[%emt 0:01:20]
} 34. e7 {[%emt 0:00:08]} Bg6 {[%emt 0:00:18]} 35. Bf5 {[%emt 0:02:30]} 1-0